[Event "*** Titled Tuesday Blitz"]
[Site "Chess.com"]
[Date "2020.04.14"]
[Round "3"]
[White "Sviridov_Valery"]
[Black "chessintuit"]
[Result "1-0"]
[WhiteElo "2823"]
[BlackElo "2622"]
[TimeControl "180+1"]
[EndTime "10:27:26 PDT"]
[Termination "Sviridov_Valery won by resignation"]

1. Nf3 {[%clk 0:03:00.9]} 1... d5 {[%clk 0:02:59.8]} 2. d4 {[%clk 0:03:00.6]}
2... Nf6 {[%clk 0:02:59.3]} 3. e3 {[%clk 0:03:00.1]} 3... c5 {[%clk 0:02:57.7]}
4. c3 {[%clk 0:02:59.9]} 4... Nc6 {[%clk 0:02:57.9]} 5. Nbd2 {[%clk 0:03:00.2]}
5... Bf5 {[%clk 0:02:57.7]} 6. dxc5 {[%clk 0:02:59.5]} 6... e5 {[%clk
0:02:52.1]} 7. b4 {[%clk 0:02:58.5]} 7... Qc7 {[%clk 0:02:44.1]} 8. Bb2 {[%clk
0:02:56.2]} 8... Be7 {[%clk 0:02:28.1]} 9. Be2 {[%clk 0:02:54.3]} 9... O-O
{[%clk 0:02:28]} 10. O-O {[%clk 0:02:52.1]} 10... Rfd8 {[%clk 0:02:27.2]} 11. a3
{[%clk 0:02:51.5]} 11... a6 {[%clk 0:01:55.4]} 12. Qb3 {[%clk 0:02:42.6]} 12...
Bf8 {[%clk 0:01:51.6]} 13. c4 {[%clk 0:02:29.8]} 13... d4 {[%clk 0:01:45.4]} 14.
exd4 {[%clk 0:02:30.7]} 14... exd4 {[%clk 0:01:45.7]} 15. Bd3 {[%clk 0:02:30.3]}
15... Bg4 {[%clk 0:01:34.6]} 16. h3 {[%clk 0:02:28.1]} 16... Bh5 {[%clk
0:01:34.7]} 17. Rfe1 {[%clk 0:02:27.7]} 17... Qf4 {[%clk 0:01:11]} 18. Bc1
{[%clk 0:02:09]} 18... Qc7 {[%clk 0:01:09.5]} 19. Bb2 {[%clk 0:01:45.7]} 19...
Qf4 {[%clk 0:01:09]} 20. Qc2 {[%clk 0:01:41.3]} 20... Bg6 {[%clk 0:01:01.8]} 21.
Bxg6 {[%clk 0:01:39]} 21... hxg6 {[%clk 0:01:02.7]} 22. Qd3 {[%clk 0:01:38.3]}
22... Rac8 {[%clk 0:00:58]} 23. Ne4 {[%clk 0:01:35.8]} 23... Qf5 {[%clk
0:00:45.2]} 24. Nxf6+ {[%clk 0:01:34.2]} 24... Qxf6 {[%clk 0:00:46.1]} 25. Rad1
{[%clk 0:01:31.1]} 25... a5 {[%clk 0:00:26.8]} 26. b5 {[%clk 0:01:16.7]} 26...
Nb8 {[%clk 0:00:26.8]} 27. Bxd4 {[%clk 0:01:16.9]} 27... Qf4 {[%clk 0:00:26.9]}
28. Qe3 {[%clk 0:01:12.6]} 28... Qxe3 {[%clk 0:00:26.6]} 29. Bxe3 {[%clk
0:01:13.5]} 29... Re8 {[%clk 0:00:22.7]} 30. Rd5 {[%clk 0:01:09.7]} 30... Red8
{[%clk 0:00:16.1]} 31. Red1 {[%clk 0:01:08.5]} 31... Rxd5 {[%clk 0:00:13.7]} 32.
Rxd5 {[%clk 0:01:04.5]} 32... b6 {[%clk 0:00:14.1]} 33. cxb6 {[%clk 0:01:02]}
33... Bxa3 {[%clk 0:00:15]} 34. b7 {[%clk 0:00:58.6]} 34... Re8 {[%clk
0:00:15.3]} 35. c5 {[%clk 0:00:57.7]} 35... a4 {[%clk 0:00:15.4]} 36. c6 {[%clk
0:00:56.7]} 36... Be7 {[%clk 0:00:13.5]} 37. c7 {[%clk 0:00:55.7]} 1-0

[Event "*** Titled Tuesday Blitz"]
[Site "Chess.com"]
[Date "2020.04.14"]
[Round "3"]
[White "Arencibia"]
[Black "LittlePeasant"]
[Result "0-1"]
[WhiteElo "2484"]
[BlackElo "2815"]
[TimeControl "180+1"]
[EndTime "10:27:26 PDT"]
[Termination "LittlePeasant won by resignation"]

1. d4 {[%clk 0:03:00.9]} 1... Nf6 {[%clk 0:02:58.8]} 2. c4 {[%clk 0:03:00.2]}
2... c5 {[%clk 0:02:59.1]} 3. d5 {[%clk 0:02:59.8]} 3... b5 {[%clk 0:02:59.7]}
4. cxb5 {[%clk 0:03:00.1]} 4... a6 {[%clk 0:03:00.4]} 5. bxa6 {[%clk 0:02:59.6]}
5... Bxa6 {[%clk 0:03:01.3]} 6. Nc3 {[%clk 0:02:59.6]} 6... g6 {[%clk
0:03:01.9]} 7. f4 {[%clk 0:02:59.7]} 7... Qa5 {[%clk 0:03:00.8]} 8. Bd2 {[%clk
0:02:57.5]} 8... Bg7 {[%clk 0:02:56.5]} 9. Nf3 {[%clk 0:02:57.4]} 9... O-O
{[%clk 0:02:56.1]} 10. e4 {[%clk 0:02:57.5]} 10... Bxf1 {[%clk 0:02:55.6]} 11.
Rxf1 {[%clk 0:02:57.7]} 11... d6 {[%clk 0:02:47.9]} 12. e5 {[%clk 0:02:57.4]}
12... Nfd7 {[%clk 0:02:42.7]} 13. Qe2 {[%clk 0:02:55.6]} 13... Qa6 {[%clk
0:02:32.1]} 14. e6 {[%clk 0:02:50.3]} 14... Qxe2+ {[%clk 0:02:16.1]} 15. Kxe2
{[%clk 0:02:50.4]} 15... fxe6 {[%clk 0:02:16.5]} 16. Ng5 {[%clk 0:02:29.3]}
16... Bxc3 {[%clk 0:02:13]} 17. bxc3 {[%clk 0:02:20.4]} 17... exd5 {[%clk
0:02:13]} 18. Ne6 {[%clk 0:02:20.4]} 18... Rc8 {[%clk 0:02:02.5]} 19. f5 {[%clk
0:02:20.6]} 19... Nc6 {[%clk 0:02:02]} 20. fxg6 {[%clk 0:02:19.4]} 20... hxg6
{[%clk 0:02:02.9]} 21. Nf4 {[%clk 0:02:11.5]} 21... Nf6 {[%clk 0:01:42.3]} 22.
Nxg6 {[%clk 0:02:09.2]} 22... Kg7 {[%clk 0:01:42.5]} 23. Nh4 {[%clk 0:02:07.5]}
23... Rh8 {[%clk 0:01:32]} 24. Nf5+ {[%clk 0:02:04.6]} 24... Kg6 {[%clk
0:01:32.4]} 25. h3 {[%clk 0:02:01.6]} 25... Ne4 {[%clk 0:01:32]} 26. Be1 {[%clk
0:01:31.9]} 26... e6 {[%clk 0:01:31.5]} 27. Ne3 {[%clk 0:01:24.9]} 27... d4
{[%clk 0:01:29.2]} 28. Rf4 {[%clk 0:01:20.7]} 28... d5 {[%clk 0:01:20.4]} 29.
Rg4+ {[%clk 0:01:15.2]} 29... Kf7 {[%clk 0:01:18.9]} 30. Nd1 {[%clk 0:00:54]}
30... c4 {[%clk 0:01:04.3]} 31. cxd4 {[%clk 0:00:51.2]} 31... Nxd4+ {[%clk
0:01:05.2]} 32. Kf1 {[%clk 0:00:51.2]} 32... Nc2 {[%clk 0:00:44.8]} 33. Rb1
{[%clk 0:00:51.2]} 33... Rhb8 {[%clk 0:00:44]} 34. Rxb8 {[%clk 0:00:48.8]} 34...
Rxb8 {[%clk 0:00:44.9]} 35. Bh4 {[%clk 0:00:44.8]} 35... Rb1 {[%clk 0:00:41.5]}
36. Ke2 {[%clk 0:00:45]} 36... Nd4+ {[%clk 0:00:41.6]} 37. Ke1 {[%clk
0:00:43.1]} 37... c3 {[%clk 0:00:38.6]} 38. Rf4+ {[%clk 0:00:40.7]} 38... Ke8
{[%clk 0:00:36.9]} 0-1

[Event "*** Titled Tuesday Blitz"]
[Site "Chess.com"]
[Date "2020.04.14"]
[Round "3"]
[White "GMaka"]
[Black "jk13"]
[Result "0-1"]
[WhiteElo "2255"]
[BlackElo "2793"]
[TimeControl "180+1"]
[EndTime "10:27:26 PDT"]
[Termination "jk13 won by resignation"]

1. d4 {[%clk 0:03:00.9]} 1... Nf6 {[%clk 0:02:59.7]} 2. Bg5 {[%clk 0:02:58.5]}
2... Ne4 {[%clk 0:02:58.8]} 3. Bf4 {[%clk 0:02:57.7]} 3... Nc6 {[%clk
0:02:59.4]} 4. e3 {[%clk 0:02:56.6]} 4... d5 {[%clk 0:02:59.1]} 5. f3 {[%clk
0:02:54.9]} 5... Nf6 {[%clk 0:02:58.8]} 6. Bd3 {[%clk 0:02:54]} 6... g6 {[%clk
0:02:56.5]} 7. a3 {[%clk 0:02:50.2]} 7... Bg7 {[%clk 0:02:56.5]} 8. Nc3 {[%clk
0:02:49.9]} 8... O-O {[%clk 0:02:56.3]} 9. Nge2 {[%clk 0:02:49.2]} 9... Nh5
{[%clk 0:02:51.5]} 10. O-O {[%clk 0:02:43.5]} 10... Nxf4 {[%clk 0:02:49.7]} 11.
Nxf4 {[%clk 0:02:44.4]} 11... e5 {[%clk 0:02:46.8]} 12. Nfxd5 {[%clk 0:02:29.6]}
12... exd4 {[%clk 0:02:44.2]} 13. exd4 {[%clk 0:02:30.5]} 13... Nxd4 {[%clk
0:02:30.3]} 14. Bc4 {[%clk 0:02:00.4]} 14... c6 {[%clk 0:02:24.2]} 15. Ne3
{[%clk 0:01:44.3]} 15... Qb6 {[%clk 0:02:14.1]} 16. Na4 {[%clk 0:01:28.4]} 16...
Qc7 {[%clk 0:02:14.1]} 17. Nc5 {[%clk 0:01:06.6]} 17... Nf5 {[%clk 0:01:41.1]}
18. Nxf5 {[%clk 0:00:50.3]} 18... Bxf5 {[%clk 0:01:42]} 19. Nd3 {[%clk
0:00:50.4]} 19... Rad8 {[%clk 0:01:33.7]} 20. Rb1 {[%clk 0:00:45.3]} 20... b5
{[%clk 0:01:25.3]} 21. Ba2 {[%clk 0:00:43.3]} 21... c5 {[%clk 0:01:25.7]} 22.
Qc1 {[%clk 0:00:38.4]} 22... c4 {[%clk 0:01:21.6]} 23. Nf2 {[%clk 0:00:32.7]}
23... Be5 {[%clk 0:01:16]} 24. h3 {[%clk 0:00:18.2]} 24... Bf4 {[%clk
0:01:08.2]} 25. Qe1 {[%clk 0:00:17.6]} 25... Bxc2 {[%clk 0:01:08.5]} 26. Qb4
{[%clk 0:00:14.2]} 26... a6 {[%clk 0:00:59.4]} 27. Rbe1 {[%clk 0:00:12.6]} 27...
Bd2 {[%clk 0:00:59.5]} 28. Qe7 {[%clk 0:00:10.5]} 28... Rd7 {[%clk 0:01:00]} 29.
Qe5 {[%clk 0:00:09.9]} 29... Bxe1 {[%clk 0:00:56.6]} 30. Rxe1 {[%clk 0:00:10.8]}
30... Qxe5 {[%clk 0:00:55.9]} 31. Rxe5 {[%clk 0:00:11.7]} 31... Rfd8 {[%clk
0:00:55.4]} 32. Kh2 {[%clk 0:00:11.3]} 32... Rd2 {[%clk 0:00:54.9]} 33. Ng4
{[%clk 0:00:11.8]} 33... Kg7 {[%clk 0:00:54.7]} 0-1

[Event "*** Titled Tuesday Blitz"]
[Site "Chess.com"]
[Date "2020.04.14"]
[Round "3"]
[White "Orest_Vovk"]
[Black "mrkvoz"]
[Result "0-1"]
[WhiteElo "2473"]
[BlackElo "2790"]
[TimeControl "180+1"]
[EndTime "10:27:27 PDT"]
[Termination "mrkvoz won on time"]

1. g4 {[%clk 0:03:00.9]} 1... d5 {[%clk 0:02:59.6]} 2. Bg2 {[%clk 0:03:00.7]}
2... c6 {[%clk 0:02:59.8]} 3. h3 {[%clk 0:03:00.8]} 3... e5 {[%clk 0:02:59.3]}
4. d4 {[%clk 0:03:01]} 4... e4 {[%clk 0:02:58.8]} 5. c4 {[%clk 0:03:01.2]} 5...
h5 {[%clk 0:02:55.7]} 6. Nc3 {[%clk 0:03:01.1]} 6... hxg4 {[%clk 0:02:54.4]} 7.
cxd5 {[%clk 0:03:01.2]} 7... cxd5 {[%clk 0:02:45]} 8. Qb3 {[%clk 0:03:00.1]}
8... Nc6 {[%clk 0:02:37.5]} 9. Qxd5 {[%clk 0:02:58.6]} 9... Be6 {[%clk
0:02:06.1]} 10. Qxd8+ {[%clk 0:01:54.6]} 10... Rxd8 {[%clk 0:02:07]} 11. d5
{[%clk 0:01:54.8]} 11... Bxd5 {[%clk 0:02:05.8]} 12. Nxd5 {[%clk 0:01:54]} 12...
Rxd5 {[%clk 0:02:06.4]} 13. Bd2 {[%clk 0:01:42.9]} 13... Nf6 {[%clk 0:02:04.2]}
14. hxg4 {[%clk 0:01:39.2]} 14... Rxh1 {[%clk 0:02:05.1]} 15. Bxh1 {[%clk
0:01:39.2]} 15... Bb4 {[%clk 0:02:04.6]} 16. Rd1 {[%clk 0:01:29.5]} 16... Rxd2
{[%clk 0:02:00]} 17. Rxd2 {[%clk 0:01:29.3]} 17... e3 {[%clk 0:01:58]} 18. Bxc6+
{[%clk 0:00:50.2]} 18... bxc6 {[%clk 0:01:58.9]} 19. fxe3 {[%clk 0:00:50.5]}
19... Nxg4 {[%clk 0:01:58.6]} 20. a3 {[%clk 0:00:48.6]} 20... Bxd2+ {[%clk
0:01:55.2]} 21. Kxd2 {[%clk 0:00:49.5]} 21... Ne5 {[%clk 0:01:52.2]} 22. b3
{[%clk 0:00:47.1]} 22... g5 {[%clk 0:01:46.9]} 23. Nf3 {[%clk 0:00:44.5]} 23...
Nxf3+ {[%clk 0:01:39.1]} 24. exf3 {[%clk 0:00:44.4]} 24... f5 {[%clk 0:01:39.6]}
25. e4 {[%clk 0:00:34.3]} 25... fxe4 {[%clk 0:01:37.2]} 26. fxe4 {[%clk
0:00:33.9]} 26... Ke7 {[%clk 0:01:37.5]} 27. Ke3 {[%clk 0:00:31.5]} 27... Ke6
{[%clk 0:01:37.3]} 28. Kf3 {[%clk 0:00:31.2]} 28... Ke5 {[%clk 0:01:36.3]} 29.
b4 {[%clk 0:00:19.6]} 29... g4+ {[%clk 0:01:21.4]} 30. Kxg4 {[%clk 0:00:17.7]}
30... Kxe4 {[%clk 0:01:22.3]} 31. Kg5 {[%clk 0:00:18.3]} 31... Kd5 {[%clk
0:01:18.3]} 32. Kf5 {[%clk 0:00:18.6]} 32... Kc4 {[%clk 0:01:18.4]} 33. Ke5
{[%clk 0:00:19.2]} 33... Kb3 {[%clk 0:01:18.7]} 34. Kd6 {[%clk 0:00:15.7]} 34...
Kxa3 {[%clk 0:01:18.9]} 35. Kc5 {[%clk 0:00:14.8]} 35... a6 {[%clk 0:01:16.3]}
36. Kc4 {[%clk 0:00:12.3]} 36... Kb2 {[%clk 0:01:15.8]} 37. Kc5 {[%clk
0:00:06.5]} 37... Kb3 {[%clk 0:01:15.7]} 38. Kxc6 {[%clk 0:00:06]} 38... Kxb4
{[%clk 0:01:15.7]} 0-1

[Event "*** Titled Tuesday Blitz"]
[Site "Chess.com"]
[Date "2020.04.14"]
[Round "3"]
[White "beto-betun"]
[Black "ahachess"]
[Result "0-1"]
[WhiteElo "2093"]
[BlackElo "2318"]
[TimeControl "180+1"]
[EndTime "10:27:27 PDT"]
[Termination "ahachess won by checkmate"]

1. d4 {[%clk 0:03:00.9]} 1... Nf6 {[%clk 0:02:59.4]} 2. Nf3 {[%clk 0:03:00.6]}
2... g6 {[%clk 0:02:59.6]} 3. g3 {[%clk 0:03:00.6]} 3... Bg7 {[%clk 0:02:59.8]}
4. Bg2 {[%clk 0:03:00.9]} 4... O-O {[%clk 0:02:59.7]} 5. O-O {[%clk 0:03:00.7]}
5... d6 {[%clk 0:02:59.9]} 6. c4 {[%clk 0:03:00.3]} 6... Nc6 {[%clk 0:03:00.4]}
7. Nc3 {[%clk 0:02:57.2]} 7... Bg4 {[%clk 0:03:00.6]} 8. d5 {[%clk 0:02:50.5]}
8... Na5 {[%clk 0:03:00.5]} 9. Nd2 {[%clk 0:02:46.7]} 9... c5 {[%clk 0:02:59.9]}
10. f3 {[%clk 0:02:44.8]} 10... Bd7 {[%clk 0:02:58.7]} 11. e4 {[%clk 0:02:36.8]}
11... a6 {[%clk 0:02:58.6]} 12. a4 {[%clk 0:02:35.4]} 12... Rb8 {[%clk
0:02:47.5]} 13. Qe2 {[%clk 0:02:33.5]} 13... b5 {[%clk 0:02:41]} 14. axb5 {[%clk
0:02:30.7]} 14... axb5 {[%clk 0:02:39.9]} 15. Nxb5 {[%clk 0:02:24.7]} 15... Nxc4
{[%clk 0:02:36.9]} 16. Nxc4 {[%clk 0:02:05.8]} 16... Bxb5 {[%clk 0:02:36.7]} 17.
Re1 {[%clk 0:01:59.2]} 17... Nd7 {[%clk 0:02:28.2]} 18. Qc2 {[%clk 0:01:53.1]}
18... Qc7 {[%clk 0:02:18.9]} 19. Ra2 {[%clk 0:01:25.7]} 19... Rb7 {[%clk
0:02:12.7]} 20. Bg5 {[%clk 0:01:20.5]} 20... Re8 {[%clk 0:02:01.3]} 21. Rb1
{[%clk 0:01:08.5]} 21... h6 {[%clk 0:01:59.3]} 22. Bf4 {[%clk 0:01:01]} 22...
Reb8 {[%clk 0:01:58]} 23. b4 {[%clk 0:00:41.8]} 23... Bxc4 {[%clk 0:01:55.4]}
24. Qxc4 {[%clk 0:00:41.6]} 24... Rxb4 {[%clk 0:01:54.9]} 25. Rxb4 {[%clk
0:00:41.2]} 25... Rxb4 {[%clk 0:01:54.7]} 26. Qa6 {[%clk 0:00:28.7]} 26... Bd4+
{[%clk 0:01:51.9]} 27. Kf1 {[%clk 0:00:27.7]} 27... Rb1+ {[%clk 0:01:48.6]} 28.
Ke2 {[%clk 0:00:25.4]} 28... Kg7 {[%clk 0:01:36]} 29. Bh3 {[%clk 0:00:24.1]}
29... Ne5 {[%clk 0:01:33.4]} 30. Bxe5+ {[%clk 0:00:20.5]} 30... Bxe5 {[%clk
0:01:32.3]} 31. Qc6 {[%clk 0:00:19.5]} 31... Qb8 {[%clk 0:01:31.1]} 32. f4
{[%clk 0:00:12.2]} 32... Rb2+ {[%clk 0:01:28.4]} 33. Rxb2 {[%clk 0:00:11.8]}
33... Qxb2+ {[%clk 0:01:27.6]} 34. Kf3 {[%clk 0:00:10.3]} 34... Bd4 {[%clk
0:01:26.8]} 35. Kg4 {[%clk 0:00:02.3]} 35... Qxh2 {[%clk 0:01:24.5]} 36. Qd7
{[%clk 0:00:01.6]} 36... h5+ {[%clk 0:01:22.7]} 37. Kh4 {[%clk 0:00:01.9]} 37...
Bf6# {[%clk 0:01:22.4]} 0-1

[Event "*** Titled Tuesday Blitz"]
[Site "Chess.com"]
[Date "2020.04.14"]
[Round "3"]
[White "ErikRonka"]
[Black "ElHelvetico"]
[Result "0-1"]
[WhiteElo "2378"]
[BlackElo "2606"]
[TimeControl "180+1"]
[EndTime "10:27:28 PDT"]
[Termination "ElHelvetico won by resignation"]

1. e4 {[%clk 0:03:00.9]} 1... e5 {[%clk 0:02:58.3]} 2. Nf3 {[%clk 0:03:01]} 2...
Nc6 {[%clk 0:02:58.3]} 3. Nc3 {[%clk 0:03:01]} 3... Nf6 {[%clk 0:02:57.4]} 4. d4
{[%clk 0:03:01]} 4... exd4 {[%clk 0:02:56.9]} 5. Nxd4 {[%clk 0:03:01.3]} 5...
Bb4 {[%clk 0:02:57.4]} 6. Nxc6 {[%clk 0:03:01.6]} 6... bxc6 {[%clk 0:02:57.6]}
7. Bd3 {[%clk 0:03:02.2]} 7... O-O {[%clk 0:02:58.1]} 8. O-O {[%clk 0:02:57.5]}
8... Re8 {[%clk 0:02:57.1]} 9. Bg5 {[%clk 0:02:57.1]} 9... h6 {[%clk 0:02:56]}
10. Bh4 {[%clk 0:02:57.5]} 10... Bxc3 {[%clk 0:02:48.4]} 11. bxc3 {[%clk
0:02:57.3]} 11... g5 {[%clk 0:02:49]} 12. Bg3 {[%clk 0:02:57.1]} 12... Nxe4
{[%clk 0:02:49.4]} 13. Qh5 {[%clk 0:02:57.1]} 13... d6 {[%clk 0:02:23.1]} 14.
Qxh6 {[%clk 0:02:23.6]} 14... Bf5 {[%clk 0:02:21.2]} 15. Bxe4 {[%clk 0:02:00.1]}
15... Rxe4 {[%clk 0:02:18.5]} 16. f4 {[%clk 0:01:58.4]} 16... Re6 {[%clk
0:02:10.6]} 17. Qh5 {[%clk 0:01:36.5]} 17... Bg6 {[%clk 0:02:10.4]} 18. Qf3
{[%clk 0:01:16.5]} 18... gxf4 {[%clk 0:02:09.9]} 19. Qxf4 {[%clk 0:01:11.9]}
19... Qf8 {[%clk 0:01:59.4]} 20. Bh4 {[%clk 0:01:09.2]} 20... Re4 {[%clk
0:01:41.6]} 21. Qg3 {[%clk 0:01:06.6]} 21... Rae8 {[%clk 0:01:38]} 22. Bf6
{[%clk 0:01:05.5]} 22... Qh6 {[%clk 0:01:37.7]} 23. h3 {[%clk 0:00:33.6]} 23...
Qe3+ {[%clk 0:01:33.1]} 24. Qxe3 {[%clk 0:00:31.8]} 24... Rxe3 {[%clk 0:01:34]}
25. Rf4 {[%clk 0:00:25.8]} 25... Re1+ {[%clk 0:01:05.5]} 26. Rxe1 {[%clk
0:00:23.5]} 26... Rxe1+ {[%clk 0:01:06.4]} 27. Kf2 {[%clk 0:00:17.9]} 27... Re6
{[%clk 0:01:06.9]} 28. g4 {[%clk 0:00:16.2]} 28... Bxc2 {[%clk 0:01:00.5]} 29.
g5 {[%clk 0:00:16.6]} 29... Kh7 {[%clk 0:00:59.5]} 30. Kf3 {[%clk 0:00:09.7]}
30... Kg6 {[%clk 0:00:57]} 31. Rb4 {[%clk 0:00:04]} 31... c5 {[%clk 0:00:55.1]}
32. Rb7 {[%clk 0:00:03.9]} 32... Be4+ {[%clk 0:00:54.2]} 0-1

[Event "*** Titled Tuesday Blitz"]
[Site "Chess.com"]
[Date "2020.04.14"]
[Round "3"]
[White "Playgood28"]
[Black "Larina_Marija"]
[Result "1/2-1/2"]
[WhiteElo "2161"]
[BlackElo "2332"]
[TimeControl "180+1"]
[EndTime "10:27:30 PDT"]
[Termination "Game drawn by repetition"]

1. d4 {[%clk 0:03:00.9]} 1... f5 {[%clk 0:02:59.4]} 2. Nf3 {[%clk 0:02:59.7]}
2... Nf6 {[%clk 0:02:59]} 3. g3 {[%clk 0:02:59.7]} 3... g6 {[%clk 0:02:58.8]} 4.
Bg2 {[%clk 0:03:00.1]} 4... Bg7 {[%clk 0:02:59]} 5. O-O {[%clk 0:03:00.5]} 5...
O-O {[%clk 0:02:58.9]} 6. c4 {[%clk 0:03:01]} 6... d6 {[%clk 0:02:58.8]} 7. Nc3
{[%clk 0:03:00.6]} 7... Nc6 {[%clk 0:02:58.9]} 8. d5 {[%clk 0:03:00]} 8... Na5
{[%clk 0:02:58.8]} 9. Qd3 {[%clk 0:02:51.6]} 9... e5 {[%clk 0:02:56.5]} 10. e4
{[%clk 0:02:26.3]} 10... fxe4 {[%clk 0:02:40.9]} 11. Nxe4 {[%clk 0:02:24.4]}
11... Nxe4 {[%clk 0:02:37.5]} 12. Qxe4 {[%clk 0:02:22.3]} 12... Bf5 {[%clk
0:02:37]} 13. Qe2 {[%clk 0:02:20.7]} 13... b6 {[%clk 0:02:32.5]} 14. Ng5 {[%clk
0:02:15.9]} 14... Rb8 {[%clk 0:02:18.7]} 15. Ne4 {[%clk 0:02:09.4]} 15... Nb7
{[%clk 0:02:08.2]} 16. Be3 {[%clk 0:02:05.1]} 16... Nc5 {[%clk 0:02:07.8]} 17.
f3 {[%clk 0:01:45.8]} 17... Qd7 {[%clk 0:02:02.1]} 18. b4 {[%clk 0:01:39.2]}
18... Nxe4 {[%clk 0:02:01.1]} 19. fxe4 {[%clk 0:01:37.8]} 19... Bg4 {[%clk
0:02:01]} 20. Qd2 {[%clk 0:01:28.2]} 20... Bh3 {[%clk 0:01:36.6]} 21. Bxh3
{[%clk 0:01:20.6]} 21... Qxh3 {[%clk 0:01:31.2]} 22. c5 {[%clk 0:01:19.2]} 22...
bxc5 {[%clk 0:01:25.3]} 23. bxc5 {[%clk 0:01:18.3]} 23... Qg4 {[%clk 0:01:11.6]}
24. Qg2 {[%clk 0:01:07.9]} 24... Rb4 {[%clk 0:01:07.1]} 25. cxd6 {[%clk
0:00:52.3]} 25... cxd6 {[%clk 0:01:06.5]} 26. Bxa7 {[%clk 0:00:46.8]} 26... Rxe4
{[%clk 0:00:39.9]} 27. Rxf8+ {[%clk 0:00:41.6]} 27... Bxf8 {[%clk 0:00:38.8]}
28. Rf1 {[%clk 0:00:40.6]} 28... Re2 {[%clk 0:00:32.5]} 29. Rf2 {[%clk
0:00:37.3]} 29... Re1+ {[%clk 0:00:29.6]} 30. Rf1 {[%clk 0:00:37.1]} 30... Re2
{[%clk 0:00:29.7]} 31. Rf2 {[%clk 0:00:36.3]} 31... Re1+ {[%clk 0:00:23.2]} 32.
Rf1 {[%clk 0:00:36.1]} 32... Re2 {[%clk 0:00:22.2]} 1/2-1/2

[Event "*** Titled Tuesday Blitz"]
[Site "Chess.com"]
[Date "2020.04.14"]
[Round "3"]
[White "WIDBIFS"]
[Black "druskacik"]
[Result "1-0"]
[WhiteElo "2787"]
[BlackElo "2580"]
[TimeControl "180+1"]
[EndTime "10:27:31 PDT"]
[Termination "WIDBIFS won on time"]

1. d4 {[%clk 0:03:00.4]} 1... Nf6 {[%clk 0:02:55.9]} 2. Nf3 {[%clk 0:03:00.4]}
2... d5 {[%clk 0:02:55.7]} 3. Bf4 {[%clk 0:03:00.8]} 3... c5 {[%clk 0:02:50.1]}
4. e3 {[%clk 0:03:01.1]} 4... Nc6 {[%clk 0:02:49.9]} 5. Nbd2 {[%clk 0:03:01.5]}
5... e6 {[%clk 0:02:50.3]} 6. c3 {[%clk 0:03:01.5]} 6... Bd6 {[%clk 0:02:50.8]}
7. Bg3 {[%clk 0:03:01.9]} 7... O-O {[%clk 0:02:50.7]} 8. Bd3 {[%clk 0:03:01.6]}
8... b6 {[%clk 0:02:50.3]} 9. Qe2 {[%clk 0:03:02]} 9... Bb7 {[%clk 0:02:50.8]}
10. Rd1 {[%clk 0:03:01.6]} 10... Rc8 {[%clk 0:02:50.6]} 11. Ne5 {[%clk
0:02:58.7]} 11... Ne7 {[%clk 0:02:38.3]} 12. f4 {[%clk 0:02:54.9]} 12... Ne4
{[%clk 0:02:35.8]} 13. Bh4 {[%clk 0:02:53.3]} 13... f6 {[%clk 0:02:30.3]} 14.
Nxe4 {[%clk 0:02:24.8]} 14... dxe4 {[%clk 0:02:28.7]} 15. Bb5 {[%clk 0:02:24.8]}
15... Nf5 {[%clk 0:01:54]} 16. Bf2 {[%clk 0:02:17.9]} 16... cxd4 {[%clk
0:01:45]} 17. exd4 {[%clk 0:02:08.7]} 17... e3 {[%clk 0:01:32.3]} 18. Bg3 {[%clk
0:01:53]} 18... Bd5 {[%clk 0:01:03.6]} 19. Ng4 {[%clk 0:01:49.1]} 19... Bxa2
{[%clk 0:00:45.6]} 20. Nxe3 {[%clk 0:01:42.7]} 20... Bb3 {[%clk 0:00:37.4]} 21.
Ra1 {[%clk 0:01:23.9]} 21... a5 {[%clk 0:00:26.4]} 22. O-O {[%clk 0:01:11.6]}
22... Qc7 {[%clk 0:00:19.4]} 23. Rac1 {[%clk 0:01:01.2]} 23... Kf7 {[%clk
0:00:17]} 24. Nxf5 {[%clk 0:00:54.8]} 24... exf5 {[%clk 0:00:17.5]} 25. c4
{[%clk 0:00:55.3]} 25... a4 {[%clk 0:00:04.9]} 26. Rfe1 {[%clk 0:00:54.5]} 1-0

[Event "*** Titled Tuesday Blitz"]
[Site "Chess.com"]
[Date "2020.04.14"]
[Round "3"]
[White "ajian"]
[Black "grzechu96"]
[Result "0-1"]
[WhiteElo "2365"]
[BlackElo "2589"]
[TimeControl "180+1"]
[EndTime "10:27:31 PDT"]
[Termination "grzechu96 won by resignation"]

1. d4 {[%clk 0:02:51.7]} 1... Nf6 {[%clk 0:02:59.4]} 2. c4 {[%clk 0:02:51.7]}
2... g6 {[%clk 0:02:59.6]} 3. Nc3 {[%clk 0:02:51.7]} 3... d5 {[%clk 0:03:00.2]}
4. cxd5 {[%clk 0:02:51.5]} 4... Nxd5 {[%clk 0:03:01.1]} 5. e4 {[%clk 0:02:51.9]}
5... Nxc3 {[%clk 0:03:01]} 6. bxc3 {[%clk 0:02:52.8]} 6... Bg7 {[%clk
0:03:01.6]} 7. Bc4 {[%clk 0:02:53.4]} 7... c5 {[%clk 0:03:01.5]} 8. Ne2 {[%clk
0:02:53.9]} 8... Nc6 {[%clk 0:03:02.1]} 9. Be3 {[%clk 0:02:54]} 9... O-O {[%clk
0:03:02.2]} 10. O-O {[%clk 0:02:53.9]} 10... Qc7 {[%clk 0:03:02.5]} 11. Rc1
{[%clk 0:02:53.4]} 11... b6 {[%clk 0:03:02.8]} 12. Bf4 {[%clk 0:02:51.9]} 12...
e5 {[%clk 0:02:59.6]} 13. Be3 {[%clk 0:02:51.8]} 13... Bb7 {[%clk 0:02:58.4]}
14. Bd5 {[%clk 0:02:51]} 14... Na5 {[%clk 0:02:50.2]} 15. Bxb7 {[%clk
0:02:42.4]} 15... Nxb7 {[%clk 0:02:50.1]} 16. Qd3 {[%clk 0:02:18.9]} 16... Rad8
{[%clk 0:02:46]} 17. Rfd1 {[%clk 0:02:03.4]} 17... Rfe8 {[%clk 0:02:41.8]} 18.
d5 {[%clk 0:01:53.7]} 18... c4 {[%clk 0:02:39.1]} 19. Qd2 {[%clk 0:01:50]} 19...
Nd6 {[%clk 0:02:39.4]} 20. f3 {[%clk 0:01:46.2]} 20... f5 {[%clk 0:02:39.5]} 21.
Qc2 {[%clk 0:01:28.1]} 21... Qd7 {[%clk 0:02:17.9]} 22. Rb1 {[%clk 0:01:14.3]}
22... fxe4 {[%clk 0:01:56.2]} 23. fxe4 {[%clk 0:01:13.7]} 23... Qg4 {[%clk
0:01:56.4]} 24. Ng3 {[%clk 0:01:13.1]} 24... h5 {[%clk 0:01:56.9]} 25. Bf2
{[%clk 0:00:38.1]} 25... h4 {[%clk 0:01:07.7]} 26. h3 {[%clk 0:00:37.8]} 26...
Qf4 {[%clk 0:01:08.1]} 27. Ne2 {[%clk 0:00:38.2]} 27... Qxe4 {[%clk 0:01:08.7]}
28. Qxe4 {[%clk 0:00:36.9]} 28... Nxe4 {[%clk 0:01:09.6]} 29. Bxh4 {[%clk
0:00:37.3]} 29... Rd6 {[%clk 0:01:09.1]} 30. Rbc1 {[%clk 0:00:29]} 30... Nc5
{[%clk 0:01:06.4]} 31. Ng3 {[%clk 0:00:20.4]} 31... Nd3 {[%clk 0:01:06.7]} 32.
Ne4 {[%clk 0:00:16.6]} 32... Rxd5 {[%clk 0:01:05.5]} 33. Rc2 {[%clk 0:00:12.7]}
33... Rf8 {[%clk 0:01:00.6]} 34. a4 {[%clk 0:00:08.8]} 34... Rf4 {[%clk
0:00:56.7]} 0-1